bitfinex/quotes_BTCUSD_20220105
["timestamp","ask_amount","ask_price","bid_price","bid_amount"]
[1641348856611,0.054106,46225.0,46224.0,0.108211]
[1641348857011,0.054106,46225.0,46224.0,0.054106]
[1641348857215,0.00187699,46226.0,46224.0,0.054106]
[1641348857412,0.009,46225.0,46224.0,0.054106]
[1641348857613,0.009,46225.0,46224.0,0.410092]
[1641348858355,0.009,46225.0,46224.0,0.46419189]
[1641348858559,0.00187699,46226.0,46224.0,0.46419189]
[1641348858755,0.00187699,46226.0,46225.0,0.355986]
[1641348859156,9.00187699,46226.0,46225.0,0.62649468]
[1641348859357,9.00287699,46226.0,46224.0,0.21230189]
[1641348860057,9.00287699,46226.0,46224.0,0.26639389]
[1641348860656,9.00187699,46226.0,46224.0,0.26639389]
[1641348861058,9.00187699,46226.0,46225.0,0.26822559]
[1641348862311,8.99944195,46226.0,46225.0,0.26822559]
[1641348869466,8.56675195,46226.0,46225.0,0.37187502]
[1641348869715,8.13409295,46226.0,46225.0,0.65264559]
[1641348869913,7.70143895,46226.0,46225.0,0.38442]
[1641348870115,2.80465974,46226.0,46225.0,0.65408164]
[1641348870319,0.0001,46256.0,46229.0,0.355986]
[1641348870518,0.0001,46256.0,46249.0,0.00125084]
[1641348870719,0.0001,46256.0,46251.0,0.3572849]
[1641348870921,0.0001,46256.0,46251.0,1.0559149]
[1641348871116,0.0001,46256.0,46251.0,1.0610472]
[1641348871316,0.0001,46256.0,46251.0,1.42920884]
[1641348871518,0.0001,46256.0,46254.0,0.355986]
[1641348871519,6.28e-05,46255.0,46254.0,0.355986]
[1641348871716,6.28e-05,46255.0,46254.0,1.30431394]
[1641348871916,0.0001,46257.0,46255.0,0.355986]
[1641348872116,0.0001,46257.0,46256.0,0.87536974]
[1641348872315,0.0001,46257.0,46256.0,0.7057081]
[1641348872516,0.0013526,46276.0,46257.0,0.61003599]
[1641348872724,0.0041,46269.0,46261.0,0.555986]
[1641348872917,0.00198235,46278.0,46270.0,0.00127107]
[1641348872918,0.00133495,46278.0,46270.0,0.00127107]
[1641348873360,0.0001,46273.0,46270.0,0.01027107]
[1641348873565,0.0001,46273.0,46272.0,0.355986]
[1641348873761,0.0001,46273.0,46272.0,0.35723824]
[1641348873962,0.9601,46273.0,46272.0,0.40723824]
[1641348874160,0.9601,46273.0,46272.0,0.05125224]
[1641348874361,0.0001,46273.0,46272.0,0.05125224]
[1641348874559,0.0001,46273.0,46272.0,0.40723824]
[1641348874760,0.0001,46273.0,46272.0,0.35723824]
[1641348874962,1.2101,46273.0,46272.0,0.355986]
[1641348875160,1.2101,46273.0,46271.0,0.27021022]
[1641348875361,1.2101,46273.0,46272.0,0.076]
[1641348875562,1.2101,46273.0,46272.0,0.3354587]
[1641348876261,1.2101,46273.0,46272.0,0.076]
[1641348876662,1.2101,46273.0,46271.0,0.27021022]
[1641348877504,1.2101,46273.0,46271.0,0.30021022]
[1641348878304,0.0001,46273.0,46271.0,0.30021022]
[1641348878505,0.0001,46273.0,46272.0,0.355986]
[1641348878905,0.8601,46273.0,46272.0,0.355986]
[1641348879105,0.8601,46273.0,46271.0,0.27021022]
[1641348879511,0.8601,46273.0,46272.0,0.062]
[1641348879906,1.1501,46273.0,46272.0,0.062]
[1641348880705,1.2581,46273.0,46271.0,0.27021022]
[1641348880963,1.3581,46273.0,46265.0,0.108096]
[1641348881161,1.3581,46273.0,46266.0,0.108104]
[1641348881368,1.3581,46273.0,46269.0,0.054049]
[1641348882462,1.0681,46273.0,46270.0,0.054053]
[1641348882663,1.0681,46273.0,46271.0,0.054045]
[1641348883463,1.0721,46273.0,46271.0,0.099045]
[1641348883665,0.9721,46273.0,46271.0,0.099045]
[1641348884712,0.9681,46273.0,46271.0,0.054045]
[1641348885513,0.1101,46273.0,46268.0,0.10808621]
[1641348886112,8.284e-05,46272.0,46268.0,0.10808621]
[1641348886312,8.284e-05,46272.0,46270.0,0.054053]
[1641348887516,0.00108284,46272.0,46270.0,0.113053]
[1641348887916,0.10418284,46273.0,46270.0,0.113053]
[1641348888115,0.10418284,46273.0,46271.0,0.30582453]
[1641348888761,0.10418284,46273.0,46271.0,0.054046]
[1641348889268,0.10418284,46273.0,46270.0,0.054053]
[1641348889269,0.54302491,46272.0,46270.0,0.054053]
[1641348889470,0.54302491,46272.0,46258.0,0.0046]
[1641348889471,0.6326257,46271.0,46259.0,0.06485203]
[1641348889665,0.28646176,46258.0,46255.0,0.054066]
[1641348889863,0.35382176,46258.0,46256.0,0.355986]
[1641348890063,0.16736,46258.0,46257.0,0.355986]
[1641348890264,0.16736,46258.0,46254.0,0.64859]
[1641348890465,0.221429,46258.0,46255.0,0.355986]
[1641348890664,0.221429,46258.0,46255.0,0.410054]
[1641348890665,0.06736,46258.0,46255.0,0.410054]
[1641348891064,0.00141697,46259.0,46255.0,0.460054]
[1641348891464,0.007,46258.0,46255.0,0.475054]
[1641348891867,0.007,46258.0,46255.0,0.425054]
[1641348892707,0.00141697,46259.0,46255.0,0.410054]
[1641348893510,0.00141697,46259.0,46255.0,0.437054]
[1641348893511,0.01141697,46259.0,46255.0,0.437054]
[1641348893911,0.01141697,46259.0,46255.0,0.491117]
[1641348894611,0.01141697,46259.0,46255.0,0.464117]
[1641348894811,0.00141697,46259.0,46255.0,0.464117]
[1641348895413,0.004,46259.0,46255.0,0.507117]
[1641348895612,0.004,46259.0,46258.0,0.054063]
[1641348896657,6.512e-05,46259.0,46258.0,0.054063]
[1641348897461,0.02306512,46259.0,46258.0,0.412049]
[1641348897861,0.99306512,46259.0,46258.0,0.412049]
[1641348898059,0.99306512,46259.0,46258.0,0.056063]
[1641348898660,0.98306512,46259.0,46258.0,0.056063]
[1641348898861,0.97,46259.0,46258.0,0.054063]
[1641348899463,0.97,46259.0,46258.0,0.068063]
[1641348899710,0.97,46259.0,46258.0,0.063063]
[1641348900007,0.37617983,46263.0,46258.0,0.014]
[1641348900207,0.37617983,46263.0,46259.0,0.05406]
[1641348901410,0.37617983,46263.0,46259.0,0.06206]
[1641348901609,0.38717983,46263.0,46259.0,0.06206]
[1641348901809,0.065062,46263.0,46259.0,0.06206]
[1641348902810,0.054062,46263.0,46259.0,0.05406]
[1641348903461,0.064062,46263.0,46259.0,0.06406]
[1641348904460,0.064062,46263.0,46259.0,0.118121]
[1641348904965,0.054062,46263.0,46259.0,0.108121]
[1641348905460,0.38116703,46263.0,46259.0,0.125121]
[1641348905661,0.38116703,46263.0,46259.0,0.07106]
[1641348905861,0.062062,46263.0,46259.0,0.07106]
[1641348906661,0.05554585,46263.0,46260.0,0.355986]
[1641348906861,0.05554585,46263.0,46259.0,0.108121]
[1641348907111,6.175e-05,46262.0,46259.0,0.108121]
[1641348907515,0.05412475,46262.0,46259.0,0.07606]
[1641348909312,0.05412475,46262.0,46260.0,0.02666404]
[1641348909512,0.06312475,46262.0,46260.0,0.00909457]
[1641348909912,0.06312475,46262.0,46261.0,0.00909457]
[1641348910856,0.81412475,46262.0,46261.0,0.00909457]
[1641348911055,0.91412475,46262.0,46261.0,0.00909457]
[1641348911457,0.92812475,46262.0,46261.0,0.00909457]
[1641348911656,0.98218775,46262.0,46261.0,0.00909457]
[1641348912557,1.32218775,46262.0,46261.0,0.00909457]
[1641348912760,1.20818775,46262.0,46261.0,0.00909457]
[1641348913458,1.21918775,46262.0,46261.0,0.00909457]
[1641348914058,1.31918775,46262.0,46261.0,0.00909457]
[1641348914705,1.30818775,46262.0,46261.0,0.01818914]
[1641348915507,0.98018775,46262.0,46261.0,0.01818914]
[1641348915706,0.92612475,46262.0,46261.0,0.01818914]
[1641348916007,0.82612475,46262.0,46261.0,0.01818914]
[1641348916606,1.45612475,46262.0,46261.0,0.01818914]
[1641348916807,1.44412475,46262.0,46261.0,0.06818914]
[1641348917607,1.44912475,46262.0,46261.0,0.10018914]
[1641348918866,1.44412475,46262.0,46261.0,0.06818914]
[1641348919066,1.54412475,46262.0,46261.0,0.01818914]
[1641348919465,1.59818875,46262.0,46261.0,0.01818914]
[1641348919663,1.50618875,46262.0,46261.0,0.02818914]
[1641348920264,0.87618875,46262.0,46261.0,0.02818914]
[1641348920473,1.26618875,46262.0,46261.0,0.02818914]
[1641348920665,0.82212475,46262.0,46261.0,0.02818914]
[1641348920865,0.81412475,46262.0,46261.0,0.01818914]
[1641348921465,1.31412475,46262.0,46261.0,0.01818914]
[1641348921665,1.31712475,46262.0,46261.0,0.05418914]
[1641348922808,1.31412475,46262.0,46261.0,0.01818914]
[1641348923609,1.31912475,46262.0,46261.0,0.04518914]
[1641348923809,0.81912475,46262.0,46261.0,0.04518914]
[1641348924411,1.23912475,46262.0,46261.0,0.04518914]
[1641348924811,1.23412475,46262.0,46261.0,0.01818914]
[1641348925012,0.81412475,46262.0,46261.0,0.01818914]
[1641348925616,0.81712475,46262.0,46261.0,0.05118914]
[1641348926556,0.81686446,46262.0,46261.0,0.05118914]
[1641348927556,0.81886446,46262.0,46261.0,0.07918914]
[1641348928857,0.81386446,46262.0,46261.0,0.01818914]
[1641348931413,0.81386446,46262.0,46261.0,0.06818914]
[1641348931612,0.81386446,46262.0,46261.0,0.12818914]
[1641348932812,0.81386446,46262.0,46261.0,0.06818914]
[1641348933461,0.00148385,46263.0,46261.0,0.06818914]
[1641348933671,0.00148385,46263.0,46262.0,0.355986]
[1641348934063,0.00148385,46263.0,46262.0,0.37417514]
[1641348935563,0.00148385,46263.0,46262.0,0.40717514]
[1641348936965,0.00148385,46263.0,46262.0,0.37417514]
[1641348937611,0.00148385,46263.0,46262.0,0.39917514]
[1641348938816,0.00148385,46263.0,46262.0,0.37417514]
[1641348939612,0.00148385,46263.0,46262.0,0.68959906]
[1641348940413,0.00148385,46263.0,46262.0,0.67993106]
[1641348941265,0.00148385,46263.0,46262.0,0.64293106]
[1641348941663,0.00148385,46263.0,46262.0,0.66993106]
[1641348942465,0.108205,46274.0,46262.0,0.86993106]
[1641348942466,0.0001,46274.0,46262.0,0.86993106]
[1641348942664,0.0001,46274.0,46263.0,0.5093]
[1641348942870,0.0001,46274.0,46270.0,0.00122777]
[1641348943065,0.0001,46274.0,46271.0,0.355813]
[1641348943264,0.0001,46274.0,46272.0,0.00909457]
[1641348943465,0.0001,46274.0,46273.0,0.355813]
[1641348943865,0.0001,46274.0,46273.0,0.405813]
[1641348944909,0.0001,46274.0,46273.0,0.455813]
[1641348945109,0.0001,46274.0,46273.0,0.71798319]
[1641348945309,0.2901,46274.0,46273.0,0.71798319]
[1641348945710,0.2901,46274.0,46273.0,0.473813]
[1641348946911,0.2901,46274.0,46273.0,0.455813]
[1641348947612,0.2901,46274.0,46273.0,0.474813]
[1641348947814,0.2901,46274.0,46273.0,0.424813]
[1641348948112,0.6801,46274.0,46273.0,0.424813]
[1641348948358,0.6801,46274.0,46273.0,0.43390757]
[1641348948557,0.2901,46274.0,46273.0,0.44300214]
[1641348948957,0.2901,46274.0,46273.0,0.42400214]
[1641348949161,0.29016633,46274.0,46273.0,0.42400214]
[1641348949858,0.29016633,46274.0,46273.0,0.44300214]
[1641348950058,0.00016633,46274.0,46273.0,0.44300214]
[1641348950258,0.00016633,46274.0,46273.0,0.70426299]
[1641348950462,0.00016633,46274.0,46273.0,0.65238191]
[1641348950660,0.00016633,46274.0,46273.0,0.70238191]
[1641348950858,0.00016633,46274.0,46273.0,0.68338191]
[1641348951661,0.00016633,46274.0,46273.0,0.70238191]
[1641348952822,0.00016633,46274.0,46273.0,0.68338191]
[1641348953622,0.00016633,46274.0,46273.0,0.70438191]
[1641348953822,0.00016633,46274.0,46273.0,0.44312106]
[1641348954225,0.70016633,46274.0,46273.0,0.44312106]
[1641348954423,0.70016633,46274.0,46273.0,0.08918914]
[1641348954723,0.00016633,46274.0,46273.0,0.08918914]
[1641348954922,0.00016633,46274.0,46273.0,0.42397614]
[1641348955124,0.75016633,46274.0,46273.0,0.42397614]
[1641348955323,0.00016633,46274.0,46273.0,0.06818914]
[1641348955523,0.00016633,46274.0,46273.0,0.42397614]
[1641348955723,0.00016633,46274.0,46273.0,0.43797614]
[1641348956771,0.00016633,46274.0,46273.0,0.68665123]
[1641348956967,0.00016633,46274.0,46273.0,0.67265123]
[1641348957767,0.00016633,46274.0,46273.0,0.69365123]
[1641348958171,0.41016633,46274.0,46273.0,0.69365123]
[1641348958371,0.41016633,46274.0,46273.0,0.44497614]
[1641348958970,0.41016633,46274.0,46273.0,0.42397614]
[1641348959620,0.41016633,46274.0,46273.0,0.44397614]
[1641348960221,0.41016633,46274.0,46273.0,0.39397614]
[1641348960423,0.41016633,46274.0,46273.0,0.08818914]
[1641348960620,0.41016633,46274.0,46273.0,0.03818914]
[1641348960820,0.41016633,46274.0,46273.0,0.08818914]
[1641348961022,0.41016633,46274.0,46273.0,0.01818914]
[1641348961220,0.00016633,46274.0,46273.0,0.01818914]
[1641348961421,0.00016633,46274.0,46273.0,0.37397614]
[1641348961619,0.00016633,46274.0,46273.0,0.39497614]
[1641348961821,0.00016633,46274.0,46273.0,0.44497614]
[1641348962023,0.45016633,46274.0,46273.0,0.44497614]
[1641348962220,0.45016633,46274.0,46273.0,0.69972552]
[1641348962420,0.45016633,46274.0,46273.0,0.69401716]
[1641348962622,0.45016633,46274.0,46273.0,0.69640165]
[1641348963024,0.45016633,46274.0,46273.0,0.67540165]
[1641348963663,0.45616633,46274.0,46273.0,0.68840165]
[1641348965064,0.45616633,46274.0,46273.0,0.67540165]
[1641348965065,0.45016633,46274.0,46273.0,0.67540165]
[1641348965666,0.45716633,46274.0,46273.0,0.43697614]
[1641348966069,0.88716633,46274.0,46273.0,0.08118914]
[1641348966667,0.45716633,46274.0,46273.0,0.08118914]
[1641348966867,0.45716633,46274.0,46273.0,0.06818914]
[1641348966868,0.45016633,46274.0,46273.0,0.06818914]
[1641348967119,0.45016633,46274.0,46273.0,0.01818914]
[1641348967721,0.45016633,46274.0,46273.0,0.03118914]
[1641348968021,0.94016633,46274.0,46273.0,0.03118914]
[1641348968420,0.45016633,46274.0,46273.0,0.03118914]
[1641348968923,0.77016633,46274.0,46273.0,0.01818914]
[1641348969121,0.45016633,46274.0,46273.0,0.01818914]
[1641348969721,0.45916633,46274.0,46273.0,0.02918914]
[1641348969926,1.19916633,46274.0,46273.0,0.02918914]
[1641348970521,1.19416633,46274.0,46273.0,0.02918914]
[1641348971567,1.28516633,46274.0,46273.0,0.01818914]
[1641348971770,1.31616633,46274.0,46273.0,0.01818914]
[1641348973266,1.28016633,46274.0,46273.0,0.01818914]
[1641348973766,1.31116633,46274.0,46273.0,0.01818914]
[1641348973967,1.63116633,46274.0,46273.0,0.01818914]
[1641348975016,1.60016633,46274.0,46273.0,0.01818914]
[1641348975816,1.63616633,46274.0,46273.0,0.01918914]
[1641348976217,1.31116633,46274.0,46273.0,0.01918914]
[1641348976419,1.21116633,46274.0,46273.0,0.01918914]
[1641348976818,1.51116633,46274.0,46273.0,0.01918914]
[1641348977016,1.51116633,46274.0,46273.0,0.01818914]
[1641348977017,1.47516633,46274.0,46273.0,0.01818914]
[1641348977823,1.52416633,46274.0,46273.0,0.02318914]
[1641348978219,1.22416633,46274.0,46273.0,0.02318914]
[1641348979068,1.17516633,46274.0,46273.0,0.01818914]
[1641348979670,0.43516633,46274.0,46273.0,0.01818914]
[1641348979870,0.94516633,46274.0,46273.0,0.01818914]
[1641348980871,1.24516633,46274.0,46273.0,0.01818914]
[1641348981072,1.18516633,46274.0,46273.0,0.01818914]
[1641348981873,1.23016633,46274.0,46273.0,0.01818914]
[1641348982514,1.22516633,46274.0,46273.0,0.01818914]
[1641348982916,1.61516633,46274.0,46273.0,0.01818914]
[1641348983121,1.57016633,46274.0,46273.0,0.01818914]
[1641348983618,1.18016633,46274.0,46273.0,0.01818914]
[1641348983817,1.21016633,46274.0,46273.0,0.01818914]
[1641348984818,1.52016633,46274.0,46273.0,0.01818914]
[1641348985017,1.18016633,46274.0,46273.0,0.01818914]
[1641348985871,1.64916633,46274.0,46273.0,0.01918914]
[1641348986271,1.20916633,46274.0,46273.0,0.01918914]
[1641348986871,1.49916633,46274.0,46273.0,0.01918914]
[1641348987071,1.47016633,46274.0,46273.0,0.01818914]
[1641348987472,0.88016633,46274.0,46273.0,0.01818914]
[1641348987674,1.54016633,46274.0,46273.0,0.01818914]
[1641348987873,1.56916633,46274.0,46273.0,0.01918914]
[1641348988973,1.56916633,46274.0,46273.0,0.01818914]
[1641348989176,1.54016633,46274.0,46273.0,0.01818914]
[1641348989813,1.55916633,46274.0,46273.0,0.02118914]
[1641348990312,0.89916633,46274.0,46273.0,0.02118914]
[1641348990513,0.88916633,46274.0,46273.0,0.02118914]
[1641348990915,0.88916633,46274.0,46273.0,0.01818914]
[1641348991115,0.87016633,46274.0,46273.0,0.01818914]
[1641348991314,0.05542373,46275.0,46268.0,0.02223714]
[1641348991514,0.054048,46272.0,46268.0,0.02223714]
[1641348991815,0.054048,46272.0,46269.0,0.405787]
[1641348992015,0.054048,46272.0,46269.0,0.459833]
[1641348992614,0.34182715,46272.0,46269.0,0.459833]
[1641348992815,0.34182715,46272.0,46269.0,0.405787]
[1641348993015,0.34182715,46272.0,46268.0,0.009]
[1641348993221,0.0485,46271.0,46263.0,0.2879]
[1641348993467,0.05406,46268.0,46263.0,0.2879]
[1641348993666,0.10256,46268.0,46265.0,0.355787]
[1641348993866,0.26190591,46267.0,46264.0,0.5753]
[1641348994068,0.26190591,46267.0,46264.0,0.005]
[1641348994267,0.37002191,46267.0,46264.0,0.005]
[1641348994467,0.97983823,46265.0,46264.0,0.005]
[1641348994671,0.37002191,46267.0,46264.0,0.005]
[1641348995067,0.054058,46266.0,46257.0,0.53324812]
[1641348995269,0.054058,46266.0,46258.0,0.355787]
[1641348995670,0.31108911,46266.0,46258.0,0.405787]
[1641348995874,0.31108911,46266.0,46261.0,0.054055]
[1641348996072,0.054058,46266.0,46261.0,0.10810711]
[1641348996570,0.054058,46266.0,46261.0,0.054055]
[1641348997816,0.054058,46266.0,46261.0,0.109055]
[1641348998019,0.054058,46266.0,46263.0,0.054053]
[1641348999421,0.10390062,46268.0,46263.0,0.054053]
[1641348999819,0.10390062,46268.0,46263.0,0.088053]
[1641349000020,0.00134962,46268.0,46264.0,0.24687918]
[1641349000220,0.00134962,46268.0,46265.0,0.054048]
[1641349000865,0.00253052,46268.0,46267.0,0.355787]
[1641349001070,0.00253052,46268.0,46267.0,0.64206903]
[1641349001866,0.00253052,46268.0,46267.0,0.66206903]
[1641349002666,0.3511809,46268.0,46267.0,0.66206903]
[1641349003069,0.3511809,46268.0,46267.0,0.64206903]
[1641349003966,0.3511809,46268.0,46267.0,0.65906903]
[1641349004369,0.0011809,46268.0,46267.0,0.65906903]
[1641349005013,0.0011809,46268.0,46267.0,0.64206903]
[1641349005817,0.0011809,46268.0,46267.0,0.66106903]
[1641349007119,0.0011809,46268.0,46267.0,0.64206903]
[1641349007919,0.0011809,46268.0,46267.0,0.76306903]
[1641349009161,0.0011809,46268.0,46267.0,0.74206903]
[1641349009960,0.0011809,46268.0,46267.0,0.76606903]
[1641349010564,0.0011809,46268.0,46267.0,0.96606903]
[1641349011163,0.0011809,46268.0,46267.0,0.74206903]
[1641349011965,0.0011809,46268.0,46267.0,0.76506903]
[1641349013120,0.0011809,46268.0,46267.0,0.74206903]
[1641349013822,0.0011809,46268.0,46267.0,0.76506903]
[1641349014222,0.0011809,46268.0,46267.0,0.66506903]
[1641349015223,0.0011809,46268.0,46267.0,0.74206903]
[1641349015875,0.0011809,46268.0,46267.0,0.76506903]
[1641349017977,0.0011809,46268.0,46267.0,0.78806903]
[1641349019080,0.0011809,46268.0,46267.0,0.74206903]
[1641349019920,0.0011809,46268.0,46267.0,0.76406903]
[1641349021023,0.0011809,46268.0,46267.0,1.04904903]
[1641349021223,0.00137676,46270.0,46268.0,0.2]
[1641349021419,0.00137676,46270.0,46269.0,1.67157364]
[1641349021633,0.00137676,46270.0,46269.0,1.82157364]
[1641349022122,0.00137676,46270.0,46269.0,2.96757364]
[1641349022420,7.676e-05,46270.0,46269.0,1.82157364]
[1641349022721,0.0002,46275.0,46273.0,2.54239912]
[1641349022922,0.0002,46275.0,46274.0,0.355787]
[1641349023470,0.8302,46275.0,46274.0,0.355787]
[1641349023865,0.8302,46275.0,46274.0,0.370787]
[1641349024369,0.0002,46275.0,46274.0,0.370787]
[1641349024966,0.0002,46275.0,46274.0,0.62131816]
[1641349025164,0.0002,46275.0,46274.0,0.60631816]
[1641349025365,0.4402,46275.0,46274.0,0.60631816]
[1641349025765,0.0002,46275.0,46274.0,0.60631816]
[1641349025965,0.0002,46275.0,46274.0,0.62031816]
[1641349027216,0.0002,46275.0,46274.0,0.60631816]
[1641349027818,0.0002,46275.0,46274.0,0.355787]
[1641349028017,0.0002,46275.0,46274.0,0.370787]
[1641349028219,0.9302,46275.0,46274.0,0.370787]
[1641349028618,0.9302,46275.0,46274.0,0.015]
[1641349028819,1.1989646,46275.0,46274.0,0.015]
[1641349029219,1.1989646,46275.0,46269.0,0.69838]
[1641349029419,1.1839646,46275.0,46269.0,0.69838]
[1641349029820,1.1839646,46275.0,46269.0,0.74838]
[1641349030019,1.1839646,46275.0,46269.0,0.76438]
[1641349030020,1.2380096,46275.0,46269.0,0.76438]
[1641349030220,0.969245,46275.0,46270.0,0.05404338]
[1641349030519,0.969245,46275.0,46270.0,0.10404338]
[1641349030973,0.969245,46275.0,46272.0,0.054044]
[1641349030974,0.9152,46275.0,46272.0,0.054044]
[1641349031574,0.969244,46275.0,46272.0,0.154044]
[1641349031972,0.969244,46275.0,46273.0,0.054043]
[1641349032574,0.0001,46276.0,46274.0,2.61093815]
[1641349032775,0.0001,46276.0,46275.0,0.355787]
[1641349032977,0.0001,46276.0,46275.0,0.455787]
[1641349033573,0.0001,46276.0,46275.0,0.405787]
[1641349033975,0.0001,46276.0,46275.0,0.419787]
[1641349034616,0.0001,46276.0,46275.0,0.469787]
[1641349034820,0.0001,46276.0,46275.0,0.419787]
[1641349035217,0.0001,46276.0,46275.0,0.405787]
[1641349036018,0.0001,46276.0,46275.0,0.420787]
[1641349037322,0.0001,46276.0,46275.0,0.405787]
[1641349037918,0.0001,46276.0,46275.0,0.419787]
[1641349039170,0.0001,46276.0,46275.0,0.405787]
[1641349040171,0.0001,46276.0,46275.0,0.420787]
[1641349040971,0.0001,46276.0,46275.0,0.470787]
[1641349041171,0.0001,46276.0,46275.0,0.455787]
[1641349041970,0.0001,46276.0,46275.0,0.470787]
[1641349042223,0.0001,46276.0,46275.0,0.67207713]
[1641349043226,0.0001,46276.0,46275.0,0.65707713]
[1641349043526,0.00016199,46276.0,46275.0,0.65707713]
[1641349043928,0.00016199,46276.0,46275.0,0.67307713]
[1641349045128,0.00016199,46276.0,46275.0,0.65707713]
[1641349045529,0.00016199,46276.0,46275.0,0.45707713]
[1641349045976,0.00016199,46276.0,46275.0,0.47307713]
[1641349046377,0.00016199,46276.0,46275.0,0.42307713]
[1641349047179,0.48016199,46276.0,46275.0,0.40707713]
[1641349047979,0.48016199,46276.0,46275.0,0.42607713]
[1641349048580,0.48016199,46276.0,46275.0,0.62607713]
[1641349049178,0.48016199,46276.0,46275.0,0.60707713]
[1641349049820,0.48016199,46276.0,46275.0,0.40707713]
[1641349050021,0.48016199,46276.0,46275.0,0.42607713]
[1641349050820,0.00016199,46276.0,46275.0,0.42607713]
[1641349051020,0.00016199,46276.0,46275.0,0.62607713]
[1641349051221,0.00016199,46276.0,46275.0,0.60707713]
[1641349052021,0.34016199,46276.0,46275.0,0.62607713]
[1641349052922,0.34016199,46276.0,46275.0,0.42607713]
[1641349053125,0.34016199,46276.0,46275.0,0.40707713]
[1641349054079,0.00016199,46276.0,46275.0,0.42607713]
[1641349055083,0.35016199,46276.0,46275.0,0.42607713]
[1641349055386,0.35016199,46276.0,46275.0,0.40707713]
[1641349055582,0.00016199,46276.0,46275.0,0.40707713]
[1641349055983,0.00016199,46276.0,46275.0,0.42607713]
[1641349056182,0.00016199,46276.0,46275.0,0.62607713]
[1641349056982,0.26016199,46276.0,46275.0,0.62607713]
[1641349057221,0.26016199,46276.0,46275.0,0.60707713]
[1641349057421,0.00016199,46276.0,46275.0,0.60707713]
[1641349058025,0.00016199,46276.0,46275.0,0.62707713]
[1641349059223,0.00016199,46276.0,46275.0,0.60707713]
[1641349060023,0.00016199,46276.0,46275.0,0.67707713]
[1641349060627,0.00016199,46276.0,46275.0,1.09016467]
[1641349060876,0.00016199,46276.0,46275.0,1.20236467]
[1641349061078,0.00016199,46276.0,46275.0,1.85066467]
[1641349061377,0.00016199,46276.0,46275.0,2.97666467]
[1641349061778,0.00016199,46276.0,46275.0,2.69808713]
[1641349061977,0.00016199,46276.0,46275.0,2.72008713]
[1641349062276,0.00016199,46276.0,46275.0,2.70388713]
[1641349062477,0.00163495,46278.0,46277.0,0.2]
[1641349062678,0.00163495,46278.0,46277.0,2.398557]
[1641349062877,0.00163495,46278.0,46277.0,2.548557]
[1641349063288,0.00163495,46278.0,46277.0,1.302557]
[1641349063879,0.35163495,46278.0,46277.0,1.302557]
[1641349064079,0.35163495,46278.0,46277.0,1.275557]
[1641349064479,0.00163495,46278.0,46277.0,1.275557]
[1641349064928,0.37163495,46278.0,46277.0,1.275557]
[1641349065330,0.37163495,46278.0,46277.0,1.302557]
[1641349065528,0.00163495,46278.0,46277.0,1.302557]
[1641349066130,0.00163495,46278.0,46277.0,1.324557]
[1641349067131,0.00163495,46278.0,46277.0,2.470557]
[1641349067431,0.00163495,46278.0,46277.0,1.302557]
[1641349067633,0.00163495,46278.0,46277.0,2.448557]
[1641349067832,0.00163495,46278.0,46277.0,1.302557]
[1641349068031,0.00163495,46278.0,46277.0,1.324557]
[1641349069274,0.00163495,46278.0,46277.0,1.302557]
[1641349070073,0.00163495,46278.0,46277.0,1.324557]
[1641349071474,0.00163495,46278.0,46277.0,1.302557]
[1641349072121,0.00163495,46278.0,46277.0,1.324557]
[1641349072721,0.00163495,46278.0,46277.0,2.470557]
[1641349072923,0.00163495,46278.0,46277.0,2.570557]
[1641349073321,0.00163495,46278.0,46277.0,1.424557]
[1641349073521,0.00163495,46278.0,46277.0,1.402557]
[1641349074122,0.00163495,46278.0,46277.0,1.424557]
[1641349075323,0.00163495,46278.0,46277.0,1.402557]
[1641349075723,0.26163495,46278.0,46277.0,1.402557]
[1641349075971,0.00163495,46278.0,46277.0,1.402557]
[1641349076169,0.00163495,46278.0,46277.0,1.424557]
[1641349076971,0.00163495,46278.0,46277.0,1.324557]
[1641349077373,0.00163495,46278.0,46277.0,1.302557]
[1641349078073,0.00163495,46278.0,46277.0,2.470557]
[1641349078981,0.00163495,46278.0,46277.0,1.324557]
[1641349079375,0.00163495,46278.0,46277.0,1.302557]
[1641349079628,0.00163495,46278.0,46277.0,2.448557]
[1641349079828,0.00163495,46278.0,46277.0,2.548557]
[1641349080228,0.00163495,46278.0,46277.0,2.571557]
[1641349081329,0.00163495,46278.0,46277.0,2.548557]
[1641349082130,0.00163495,46278.0,46277.0,2.571557]
[1641349083130,0.00163495,46278.0,46277.0,2.471557]
[1641349083375,0.00163495,46278.0,46277.0,2.448557]
[1641349083574,0.00163495,46278.0,46277.0,2.548557]
[1641349083775,0.00163495,46278.0,46277.0,1.402557]
[1641349084179,0.00163495,46278.0,46277.0,1.425557]
[1641349084975,0.00163495,46278.0,46277.0,1.225557]
[1641349085176,0.00163495,46278.0,46277.0,1.077057]
[1641349085375,0.00163495,46278.0,46277.0,1.004057]
[1641349085577,0.97163495,46278.0,46277.0,1.004057]
[1641349086175,0.97163495,46278.0,46277.0,1.037057]
[1641349086778,0.97163495,46278.0,46277.0,0.73127]
[1641349087422,0.00163495,46278.0,46277.0,0.73127]
[1641349087628,0.00163495,46278.0,46277.0,1.054057]
[1641349087629,0.30163495,46278.0,46277.0,1.054057]
[1641349088125,0.30163495,46278.0,46277.0,1.084057]
[1641349089025,0.30163495,46278.0,46277.0,1.53300296]
[1641349089428,0.00163495,46278.0,46277.0,1.60300296]
[1641349090228,0.00163495,46278.0,46277.0,1.62500296]
[1641349091481,0.00163495,46278.0,46277.0,1.60300296]
[1641349092281,0.00163495,46278.0,46277.0,3.18800296]
[1641349092484,0.00163495,46278.0,46277.0,3.23650296]
[1641349093488,0.00163495,46278.0,46277.0,3.21750296]
[1641349094086,0.00163495,46278.0,46277.0,3.23850296]
[1641349095325,0.00163495,46278.0,46277.0,3.21750296]
[1641349095729,0.00153495,46278.0,46277.0,3.21750296]
[1641349095927,0.00153495,46278.0,46277.0,3.26750296]
[1641349096126,0.00153495,46278.0,46277.0,3.29050296]
[1641349096325,0.00153495,46278.0,46277.0,3.30270296]
[1641349097528,0.00153495,46278.0,46277.0,3.27970296]
[1641349097928,0.0041,46279.0,46277.0,3.27970296]
[1641349098129,0.0041,46279.0,46278.0,2.03689204]
[1641349098376,0.0041,46279.0,46278.0,2.79585204]
[1641349098576,0.0041,46279.0,46278.0,2.89585204]
[1641349100277,0.0041,46279.0,46278.0,2.91985204]
[1641349101478,0.0041,46279.0,46278.0,2.89585204]
[1641349102127,0.0041,46279.0,46278.0,2.91885204]